bitfinex/quotes_SOLUSD_20250228
["timestamp","ask_amount","ask_price","bid_price","bid_amount"]
[1740710427296,5.5149,129.55,129.41,38.48839426]
[1740710427605,5.5149,129.55,129.45,38.88737562]
[1740710427908,5.5149,129.55,129.47,38.83423839]
[1740710428206,11.1795,129.65,129.44,20.64964886]
[1740710428207,5.7092,129.64,129.54,38.92964572]
[1740710428394,5.7092,129.64,129.57,38.65843416]
[1740710428594,5.7092,129.64,129.57,40.27823405]
[1740710428793,5.7092,129.64,129.54,2.0]
[1740710428993,17.5449,129.72,129.61,18.64964886]
[1740710429305,6.0233,129.72,129.62,38.93014169]
[1740710429887,6.0233,129.72,129.64,38.98398753]
[1740710430102,18.79181043,129.71,129.62,38.93014169]
[1740710430288,18.64964886,129.71,129.6,130.24]
[1740710430488,18.64964886,129.71,129.55,38.36016408]
[1740710430489,0.14216157,129.67,129.53,38.27140929]
[1740710430698,20.14216157,129.62,129.53,38.27140929]
[1740710430900,20.0,129.62,129.53,38.27140929]
[1740710431308,11.4643,129.66,129.53,39.8921291]
[1740710431487,6.0233,129.72,129.58,18.64964886]
[1740710431689,6.0233,129.72,129.58,1.61956613]
[1740710431890,0.14216157,129.63,129.53,38.27140929]
[1740710432122,18.79181043,129.63,129.52,168.56471768]
[1740710432287,0.14216157,129.63,129.52,168.56471768]
[1740710432602,0.14216157,129.64,129.52,168.56471768]
[1740710433517,1.64238166,129.63,129.52,168.56471768]
[1740710433910,0.14216157,129.62,129.52,168.56471768]
[1740710434212,0.14216157,129.59,129.43,38.09969951]
[1740710434415,6.0036,129.61,129.47,38.83423839]
[1740710434712,6.0036,129.61,129.48,20.27007731]
[1740710434914,6.0036,129.61,129.49,2.14216157]
[1740710435115,6.0036,129.61,129.53,38.27140929]
[1740710435318,6.0036,129.61,129.52,38.36471768]
[1740710435499,6.0036,129.61,129.54,38.92964572]
[1740710435813,1.64238166,129.63,129.57,38.65843416]
[1740710436019,1.64238166,129.63,129.58,1.61954633]
[1740710436200,1.64238166,129.63,129.59,18.64964886]
[1740710436400,1.64238166,129.63,129.6,40.42659572]
[1740710436710,1.64238166,129.63,129.61,38.14532366]
[1740710436908,1.64238166,129.63,129.56,38.34831079]
[1740710437215,1.64238166,129.63,129.42,38.09710092]
[1740710437216,0.14216157,129.62,129.42,38.09710092]
[1740710437415,0.14216157,129.6,129.43,39.72094265]
[1740710437602,5.7145,129.59,129.43,1.62169666]
[1740710437801,0.14216157,129.55,129.41,130.2]
[1740710438002,0.14216157,129.51,129.41,130.2]
[1740710438213,0.14216157,129.54,129.41,131.82201143]
[1740710438394,5.7145,129.59,129.42,2.14216157]
[1740710438604,20.0,129.56,129.44,38.00983982]
[1740710438920,20.0,129.52,129.42,38.09710092]
[1740710439419,0.14216157,129.55,129.42,39.71876623]
[1740710439792,20.0,129.52,129.42,39.71876623]
[1740710439996,0.14216157,129.51,129.41,130.2]
[1740710440200,20.0,129.48,129.41,130.2]
[1740710440396,20.0,129.48,129.42,38.09710092]
[1740710440617,5.7145,129.59,129.44,38.00983982]
[1740710440917,20.0,129.56,129.45,1.62118678]
[1740710441102,20.0,129.56,129.43,39.72084454]
[1740710441303,0.14216157,129.55,129.42,39.71869069]
[1740710441598,20.0,129.56,129.43,40.09969951]
[1740710441800,20.0,129.56,129.41,130.2]
[1740710442027,20.0,129.52,129.41,131.82163151]
[1740710442197,0.14216157,129.51,129.41,130.2]
[1740710442722,20.0,129.48,129.41,130.2]
[1740710443236,0.14216157,129.47,129.37,0.063]
[1740710443427,0.14216157,129.45,129.37,0.063]
[1740710443729,0.14216157,129.41,129.37,0.063]
[1740710443934,0.42946475,129.47,129.37,0.063]
[1740710444130,0.14216157,129.42,129.33,130.303]
[1740710444345,18.79181043,129.42,129.33,130.303]
[1740710444710,0.42946475,129.47,129.33,0.063]
[1740710444925,38.05150084,129.53,129.34,18.64964886]
[1740710445122,3.9491107,129.47,129.33,0.063]
[1740710445430,1.39463175,129.46,129.33,0.063]
[1740710445814,3.78931836,129.44,129.36,38.87329268]
[1740710446014,1.39463175,129.46,129.36,38.87329268]
[1740710446222,6.0645,129.47,129.36,38.87329268]
[1740710446741,6.0645,129.47,129.38,38.50566587]
[1740710446944,6.0645,129.47,129.37,38.0257073]
[1740710447922,0.14216157,129.43,129.37,38.0257073]
[1740710448441,6.0645,129.47,129.37,38.0257073]
[1740710448637,1.64238166,129.46,129.39,38.05002745]
[1740710448845,1.64238166,129.46,129.41,38.48839426]
[1740710449025,1.64238166,129.46,129.43,38.09969951]
[1740710449642,1.64238166,129.46,129.45,57.67918605]
[1740710449814,6.1114,129.63,129.49,38.67378262]
[1740710450019,9.99701837,129.63,129.51,38.57639572]
[1740710450441,20.04428061,129.62,129.5,130.32]
[1740710450812,1.39463175,129.62,129.51,38.57639572]
[1740710451028,9.99701837,129.63,129.51,38.57639572]
[1740710451233,6.1114,129.63,129.51,38.57639572]
[1740710451545,20.0,129.6,129.51,38.57639572]
[1740710452020,0.14216157,129.59,129.51,38.57639572]
[1740710452542,20.14216157,129.55,129.43,38.69375635]
[1740710452832,0.14216157,129.53,129.51,20.0]
[1740710453035,18.79181043,129.51,129.37,38.44597008]
[1740710453237,11.9812,129.5,129.37,38.44597008]
[1740710453417,0.14216157,129.44,129.37,38.44597008]
[1740710453622,0.14216157,129.44,129.36,38.92950661]
[1740710453843,18.79181043,129.44,129.36,0.03]
[1740710455717,5.3298641,129.49,129.36,0.03]
[1740710455923,3.90455509,129.45,129.36,0.03]
[1740710456123,1.39463175,129.45,129.36,0.03]
[1740710456340,0.14216157,129.46,129.36,0.03]
[1740710456545,11.9812,129.5,129.37,38.44597008]
[1740710457015,18.79181043,129.48,129.36,0.03]
[1740710457334,20.18644218,129.48,129.36,0.03]
[1740710457531,20.18644218,129.48,129.36,38.92950661]
[1740710457925,20.04428061,129.48,129.36,38.92950661]
[1740710458245,18.79181043,129.49,129.36,38.92950661]
[1740710458546,18.64964886,129.49,129.36,38.92950661]
[1740710458843,0.14216157,129.48,129.36,38.92950661]
[1740710459042,0.0680356,129.47,129.36,38.92950661]
[1740710459340,0.0680356,129.47,129.38,38.99461517]
[1740710460747,0.0680356,129.47,129.39,18.64964886]
[1740710460926,0.0680356,129.47,129.4,39.85600292]
[1740710461287,0.0680356,129.47,129.42,38.31056193]
[1740710461553,0.0680356,129.47,129.4,1.62184375]
[1740710461554,0.0680356,129.47,129.44,38.63936426]
[1740710461840,0.0680356,129.47,129.46,57.20788227]
[1740710462051,5.19065799,129.62,129.51,38.04004236]
[1740710462341,5.19065799,129.62,129.53,38.1646025]
[1740710462549,5.19065799,129.62,129.54,1.62012037]
[1740710462751,5.19065799,129.62,129.53,38.1646025]
[1740710462919,0.14216157,129.61,129.53,38.1646025]
[1740710463118,5.19065799,129.62,129.53,38.1646025]
[1740710463648,9.00532266,129.62,129.53,38.1646025]
[1740710463815,5.19065799,129.62,129.55,38.05400727]
[1740710464023,5.19065799,129.62,129.58,0.14216157]
[1740710464222,12.4628,129.75,129.59,39.84673406]
[1740710464416,0.063,129.76,129.63,38.86186122]
[1740710464633,0.063,129.76,129.65,38.01182268]
[1740710464947,0.063,129.76,129.67,38.01546314]
[1740710465150,0.063,129.76,129.69,38.29300249]
[1740710465334,0.063,129.76,129.65,40.01182268]
[1740710465529,0.063,129.76,129.69,38.29300249]
[1740710465839,0.063,129.76,129.7,39.97745541]
[1740710466230,0.063,129.76,129.68,39.63089134]
[1740710466430,0.063,129.76,129.66,38.64144353]
[1740710466649,0.063,129.76,129.64,38.16778014]
[1740710467049,0.063,129.76,129.63,130.34]
[1740710467050,0.14216157,129.72,129.63,130.34]
[1740710467358,18.79181043,129.72,129.56,38.78749521]
[1740710467544,18.79181043,129.72,129.56,40.40756624]
[1740710467747,0.14216157,129.68,129.55,168.31400727]
[1740710467934,0.14216157,129.68,129.55,130.26]
[1740710468143,5.967,129.73,129.57,4.0]
[1740710468455,5.967,129.73,129.59,38.22750436]
[1740710468781,0.063,129.76,129.65,38.01182268]
[1740710469055,0.063,129.76,129.68,38.01310757]
[1740710469229,0.063,129.76,129.7,38.35953464]
[1740710469424,0.063,129.76,129.72,38.23086039]
[1740710469952,0.063,129.76,129.67,38.01546314]
[1740710470157,0.063,129.76,129.69,38.29300249]
[1740710470327,0.063,129.76,129.68,38.01310757]
[1740710470529,0.063,129.76,129.7,38.35953464]
[1740710470736,0.063,129.76,129.71,1.61824186]
[1740710470953,0.063,129.76,129.7,1.6180359]
[1740710471136,0.063,129.76,129.69,38.29300249]
[1740710471336,0.063,129.76,129.68,38.01310757]
[1740710472237,0.063,129.76,129.66,130.24]
[1740710473160,18.85481043,129.76,129.66,130.24]
[1740710473369,18.85481043,129.76,129.59,38.22750436]
[1740710473656,18.79181043,129.74,129.58,130.18]
[1740710473959,0.14216157,129.72,129.58,130.18]
[1740710474168,18.79181043,129.69,129.58,130.18]
[1740710474466,0.14216157,129.69,129.58,168.35031209]
[1740710474670,0.14216157,129.72,129.58,168.35031209]
[1740710474867,0.14216157,129.72,129.6,38.75802664]
[1740710475044,0.20516157,129.76,129.62,38.3795392]
[1740710475368,0.063,129.76,129.64,38.16778014]
[1740710475736,18.85481043,129.76,129.59,38.22750436]
[1740710475936,0.063,129.76,129.63,38.86186122]
[1740710476164,0.063,129.76,129.63,40.48072977]
[1740710476665,0.063,129.76,129.64,56.95959057]
[1740710476967,0.063,129.76,129.65,39.63026802]
[1740710477144,0.063,129.76,129.6,38.75802664]
[1740710477455,0.063,129.76,129.62,38.3795392]
[1740710477654,0.063,129.76,129.64,38.16778014]
[1740710477965,0.063,129.76,129.68,38.01310757]
[1740710478141,0.063,129.76,129.67,38.01546314]
[1740710478339,0.063,129.76,129.65,0.14216157]
[1740710478542,0.063,129.76,129.66,40.26003507]
[1740710478844,0.063,129.76,129.68,38.01310757]
[1740710479355,0.063,129.76,129.67,168.15546314]
[1740710479866,0.063,129.76,129.67,130.14]
[1740710480249,3.92635035,129.76,129.67,130.14]
[1740710480448,0.063,129.76,129.67,130.14]
[1740710480957,0.063,129.76,129.68,38.01310757]
[1740710481870,0.063,129.76,129.67,130.14]
[1740710482072,0.063,129.76,129.67,169.77443824]
[1740710482252,0.063,129.76,129.67,168.15546314]
[1740710482453,0.063,129.76,129.69,38.29300249]
[1740710482768,0.063,129.76,129.71,38.76882321]
[1740710483079,0.063,129.76,129.68,38.01310757]
[1740710484157,0.063,129.76,129.67,130.14]
[1740710484375,0.063,129.76,129.69,38.29300249]
[1740710484576,0.063,129.76,129.7,1.61827299]
[1740710485279,0.063,129.76,129.71,40.38710226]
[1740710485455,0.063,129.76,129.72,38.23086039]
[1740710485646,0.063,129.76,129.73,1.61797502]
[1740710485848,0.063,129.76,129.7,39.97731008]
[1740710486048,0.063,129.76,129.71,38.76882321]
[1740710486296,0.063,129.76,129.69,38.29300249]
[1740710486571,0.063,129.76,129.68,38.01310757]
[1740710486869,0.063,129.76,129.72,38.23086039]
[1740710487068,0.063,129.76,129.74,38.07178861]
[1740710487872,0.063,129.76,129.75,40.29721576]
[1740710488073,0.063,129.76,129.75,57.32906779]
[1740710488285,0.063,129.76,129.73,38.90589765]
[1740710488455,9.05016,129.83,129.73,38.90589765]
[1740710488650,18.79181043,129.82,129.69,38.29300249]
[1740710488859,9.05016,129.83,129.72,18.64964886]
[1740710489065,9.05016,129.83,129.72,38.23086039]
[1740710489379,9.05016,129.83,129.75,40.8215805]
[1740710489674,0.063,129.85,129.77,38.44429243]
[1740710489875,0.063,129.85,129.79,38.76314634]
[1740710490082,0.063,129.85,129.78,168.87332356]
[1740710490659,0.063,129.85,129.79,1.61730788]
[1740710491063,0.063,129.85,129.78,130.06]
[1740710492375,18.79181043,129.83,129.7,130.06]
[1740710492765,18.79181043,129.83,129.71,1.618301]
[1740710493269,18.79181043,129.83,129.7,168.41953464]
[1740710493648,18.79181043,129.83,129.71,1.61819999]
[1740710493857,18.79181043,129.83,129.7,130.06]
[1740710494157,18.79181043,129.83,129.71,1.6184378]
[1740710494352,18.79181043,129.83,129.71,40.38726101]
[1740710494856,27.88904218,129.83,129.7,130.06]
[1740710495164,18.79181043,129.79,129.62,130.04]
[1740710495355,18.79181043,129.76,129.62,130.04]
[1740710495672,26.49292036,129.76,129.62,130.04]
[1740710496057,34.19942036,129.76,129.62,130.04]
[1740710496371,18.79181043,129.72,129.53,130.04]
[1740710496559,30.53821043,129.7,129.53,130.04]
[1740710496756,22.73183931,129.68,129.53,130.04]
[1740710496966,1.38980592,129.67,129.53,130.04]
[1740710497170,18.79181043,129.66,129.53,130.04]
[1740710497479,18.79181043,129.66,129.5,0.03]
[1740710497480,18.79181043,129.64,129.5,0.03]
[1740710497684,18.79181043,129.62,129.5,0.03]
[1740710497855,0.14216157,129.59,129.5,0.03]
[1740710498057,18.79181043,129.57,129.41,0.03]
[1740710498460,18.79181043,129.55,129.41,0.03]
[1740710498660,18.64964886,129.53,129.41,0.03]
[1740710499154,18.64964886,129.51,129.41,0.03]
[1740710499359,18.79181043,129.48,129.41,0.03]
[1740710499573,18.79181043,129.48,129.37,130.04]
[1740710499983,18.79181043,129.48,129.36,0.03]
[1740710500159,1.38502822,129.52,129.37,18.64964886]
[1740710500355,18.0124901,129.58,129.36,0.03]
[1740710500356,4.067088,129.51,129.36,0.03]
[1740710500684,0.14216157,129.51,129.37,18.64964886]
[1740710500891,14.44376549,129.56,129.4,0.14216157]
[1740710501054,6.2371,129.56,129.41,1.62126647]
[1740710501262,6.2371,129.56,129.43,2.0]
[1740710501460,6.2371,129.56,129.45,18.64964886]
[1740710501791,6.2371,129.56,129.44,1.62101429]
[1740710501963,18.79181043,129.55,129.41,0.14216157]
[1740710502286,6.2371,129.56,129.42,1.62139668]
[1740710502588,6.2371,129.56,129.43,18.64964886]
[1740710502754,6.2371,129.56,129.45,18.64964886]
[1740710502954,6.2371,129.56,129.47,18.64964886]
[1740710503181,6.2206,129.64,129.49,18.64964886]
[1740710503363,6.2206,129.64,129.5,131.80025911]
[1740710503758,6.2206,129.64,129.51,18.79181043]
[1740710503985,6.2206,129.64,129.53,18.64964886]
[1740710504174,22.81235737,129.65,129.56,0.14216157]
[1740710504487,22.81235737,129.65,129.59,0.14216157]
[1740710504684,22.81235737,129.65,129.61,18.64964886]
[1740710504874,22.81235737,129.65,129.62,1.61907901]
[1740710505181,22.81235737,129.65,129.6,18.79181043]
[1740710505481,22.81235737,129.65,129.62,0.14216157]
[1740710505665,22.81235737,129.65,129.63,1.61874485]
[1740710505867,22.81235737,129.65,129.63,9.33254485]
[1740710506058,15.81731821,129.8,129.64,4.14216157]
[1740710506263,18.79181043,129.79,129.65,1.61809485]
[1740710506465,18.79181043,129.79,129.63,1.61849833]
[1740710506687,18.79181043,129.75,129.63,1.61849833]
[1740710507062,15.81731821,129.8,129.64,0.14216157]
[1740710507278,11.9124,129.8,129.66,0.14216157]
[1740710507473,11.9124,129.8,129.67,1.61827657]
[1740710507957,18.64964886,129.79,129.62,1.61840814]
[1740710508159,0.14216157,129.78,129.62,1.61840814]
[1740710508466,0.14216157,129.78,129.63,0.14216157]
[1740710508783,11.9124,129.8,129.67,18.64964886]
[1740710508978,5.8961,129.81,129.7,0.14216157]
[1740710509158,5.8961,129.81,129.72,18.79181043]
[1740710509487,11.6831,129.87,129.74,18.79181043]
[1740710509688,23.28564956,129.89,129.75,1.61710598]
[1740710510183,10.15315821,129.89,129.75,1.61710598]
[1740710510554,10.15315821,129.89,129.75,40.29652491]
[1740710510758,6.3022,129.89,129.77,38.44429243]
[1740710510981,6.3022,129.89,129.77,1.61693353]
[1740710511307,3.78791927,129.86,129.7,46.06903464]
[1740710511477,0.14216157,129.84,129.66,7.7118]
[1740710511685,18.79181043,129.81,129.67,1.618399]
[1740710511984,3.78172859,129.82,129.73,1.61809342]
[1740710512171,3.78172859,129.82,129.7,7.7099]
[1740710512371,0.20516157,129.85,129.73,1.61789135]
[1740710513084,0.20516157,129.85,129.73,1.61750796]
[1740710513288,0.20516157,129.85,129.72,130.16]
[1740710513494,18.85481043,129.85,129.72,130.16]
[1740710513803,0.14216157,129.81,129.72,130.16]
[1740710514177,18.79181043,129.81,129.72,130.16]
[1740710514560,0.14216157,129.81,129.72,130.16]
[1740710514875,3.90012525,129.82,129.73,1.61802969]
[1740710515278,3.90012525,129.82,129.72,131.77781258]
[1740710515586,18.79181043,129.81,129.72,130.16]
[1740710515790,0.063,129.85,129.76,0.14216157]
[1740710515991,0.063,129.85,129.77,9.32293356]
[1740710516164,0.063,129.85,129.79,0.14216157]
[1740710516359,0.063,129.85,129.82,0.14216157]
[1740710516565,0.063,129.85,129.81,1.61640892]
[1740710516787,0.063,129.85,129.82,1.61665053]
[1740710517102,0.063,129.85,129.8,1.61664045]
[1740710517467,0.063,129.85,129.78,1.61697993]
[1740710517882,0.063,129.85,129.79,0.14216157]
[1740710518078,0.063,129.85,129.8,1.61668464]
[1740710519006,0.063,129.85,129.81,18.79181043]
[1740710519201,0.063,129.85,129.82,1.61653001]
[1740710519517,0.063,129.85,129.79,1.61656277]
[1740710520383,0.063,129.85,129.77,9.32229459]
[1740710520681,0.063,129.85,129.78,1.61672392]
[1740710521205,0.063,129.85,129.73,1.61688775]
[1740710521507,52.58298523,129.84,129.73,1.61688775]
[1740710521812,0.063,129.85,129.78,0.14216157]
[1740710521989,0.063,129.85,129.79,1.61681122]
[1740710522503,0.063,129.85,129.8,1.61711343]
[1740710522709,0.063,129.84,129.78,0.14216157]
[1740710523006,0.063,129.84,129.8,20.79181043]
[1740710523301,0.063,129.84,129.81,1.61627716]
[1740710523509,0.063,129.84,129.82,18.79181043]
[1740710523697,0.063,129.84,129.83,1.61611721]
[1740710524586,0.063,129.84,129.81,0.14216157]
[1740710524788,0.063,129.84,129.78,1.61658297]
[1740710525009,0.063,129.84,129.74,2.0]
[1740710525312,0.063,129.84,129.75,1.61709359]
[1740710525683,18.79181043,129.82,129.72,131.77755526]
[1740710526002,52.58298523,129.81,129.72,130.16]
[1740710526313,52.58298523,129.8,129.72,130.16]
[1740710526508,71.37479566,129.79,129.72,130.16]
[1740710526811,52.58298523,129.79,129.72,130.16]
[1740710527010,52.58298523,129.79,129.73,1.61817435]
[1740710527192,52.58298523,129.79,129.74,18.79181043]
[1740710527393,52.58298523,129.79,129.74,1.61739056]
[1740710527707,0.063,129.84,129.77,18.79181043]
[1740710527910,0.063,129.84,129.79,18.79181043]
[1740710528123,0.063,129.84,129.82,0.14216157]
[1740710528409,0.063,129.84,129.83,1.61625018]
[1740710528719,0.063,129.84,129.83,21.75841175]
[1740710529006,0.063,129.85,129.84,22.79181043]
[1740710529416,0.063,129.89,129.88,22.0]
[1740710529718,0.063,129.89,129.88,1.7575571]
[1740710529891,0.063,129.89,129.88,3.7575571]
[1740710530092,0.063,129.89,129.88,1.61539553]
[1740710530293,0.063,129.89,129.85,0.14216157]
[1740710530593,0.063,129.89,129.84,1.61584676]
[1740710530594,0.063,129.89,129.84,1.61612492]
[1740710530795,0.063,129.89,129.85,1.61649271]
[1740710531006,0.063,129.89,129.83,129.96]
[1740710531204,0.063,129.89,129.84,1.61658902]
[1740710531406,0.063,129.89,129.83,129.96]
[1740710531608,52.58298523,129.88,129.83,129.96]
[1740710531819,0.14216157,129.86,129.83,129.96]
[1740710532006,52.58298523,129.85,129.75,129.94]
[1740710532214,0.14216157,129.83,129.75,129.94]
[1740710532407,6.37393323,129.89,129.75,129.94]
[1740710532408,18.64964886,129.81,129.75,129.94]
[1740710532603,52.7251468,129.8,129.69,1.61785089]
[1740710532912,71.23263409,129.79,129.67,131.55834506]
[1740710533119,0.14216157,129.77,129.67,131.55834506]
[1740710533418,52.58298523,129.76,129.68,1.6187328]
[1740710533591,0.14216157,129.83,129.68,1.6187328]
[1740710533796,18.79181043,129.81,129.68,1.6187328]
[1740710533996,18.79181043,129.81,129.67,129.94]
[1740710534193,52.58298523,129.8,129.68,1.61841527]
[1740710534405,52.58298523,129.79,129.69,18.82181043]
[1740710534625,52.58298523,129.79,129.7,1.61789741]
[1740710535002,0.14216157,129.77,129.69,1.64793907]
[1740710535200,18.64964886,129.75,129.69,0.03]
[1740710535405,52.58298523,129.74,129.69,0.03]
[1740710535899,18.64964886,129.72,129.69,0.03]
[1740710536099,18.64964886,129.7,129.58,131.57901735]
[1740710536306,52.58298523,129.69,129.58,139.29621735]
[1740710536697,52.58298523,129.69,129.58,131.57901735]
[1740710537318,52.58298523,129.69,129.58,139.29601735]
[1740710537521,52.58298523,129.69,129.58,131.57901735]
[1740710537734,18.64964886,129.68,129.58,131.57901735]
[1740710537903,52.58298523,129.67,129.58,131.57901735]
[1740710538105,18.64964886,129.65,129.58,129.96]
[1740710538304,18.64964886,129.63,129.58,129.96]
[1740710538518,52.58298523,129.62,129.58,129.96]
[1740710538728,52.58298523,129.61,129.52,0.03]
[1740710538929,52.58298523,129.6,129.52,0.03]
[1740710539524,0.14216157,129.57,129.52,0.03]
[1740710539833,12.7197,129.61,129.52,0.03]
[1740710539834,52.58298523,129.56,129.52,0.03]
[1740710540205,52.58298523,129.56,129.52,1.65086726]
[1740710540524,6.3872,129.64,129.54,0.14216157]
[1740710540525,52.58298523,129.63,129.54,0.14216157]
[1740710540725,52.58298523,129.63,129.56,0.14216157]
[1740710540918,52.58298523,129.63,129.57,1.61960051]
[1740710541120,52.58298523,129.63,129.53,1.61973055]
[1740710541432,18.79181043,129.61,129.52,0.03]
[1740710541602,0.14216157,129.59,129.52,0.03]
[1740710541803,52.58298523,129.58,129.52,0.03]
[1740710542823,52.58298523,129.58,129.52,1.65031713]
[1740710543031,52.58298523,129.58,129.52,39.87305539]
[1740710543220,6.3872,129.64,129.53,20.79181043]
[1740710543521,52.58298523,129.66,129.58,0.14216157]
[1740710543740,52.58298523,129.66,129.59,1.61937891]
[1740710544118,52.58298523,129.71,129.6,0.14216157]
[1740710544417,52.58298523,129.7,129.56,1.61909231]
[1740710544621,52.58298523,129.69,129.56,1.61909231]
[1740710544820,52.58298523,129.68,129.56,1.61909231]
[1740710545132,0.14216157,129.65,129.54,130.12]
[1740710545345,18.79181043,129.63,129.54,130.12]
[1740710545822,52.58298523,129.64,129.54,130.12]
[1740710546137,52.58298523,129.64,129.55,1.62014489]
[1740710546508,52.58298523,129.64,129.56,18.79181043]
[1740710546803,52.58298523,129.71,129.58,18.79181043]
[1740710547008,52.58298523,129.7,129.59,1.61929911]
[1740710547307,52.58298523,129.7,129.56,1.61910338]
[1740710547507,52.7251468,129.69,129.55,1.61961991]
[1740710547728,0.14216157,129.67,129.55,1.61961991]
[1740710547928,52.58298523,129.66,129.55,1.61961991]
[1740710548132,0.14216157,129.64,129.58,0.03]
[1740710548330,52.58298523,129.63,129.58,0.03]
[1740710548644,52.58298523,129.62,129.58,0.03]
[1740710548812,71.37479566,129.61,129.58,0.03]
[1740710549136,52.58298523,129.6,129.58,0.03]
[1740710550129,16.68,129.59,129.58,0.03]
[1740710554321,16.68,129.59,129.52,0.03]
[1740710555227,16.68,129.59,129.52,1.65019493]
[1740710555928,16.68,129.59,129.52,0.03]
[1740710556932,0.14216157,129.58,129.52,0.03]
[1740710557741,18.79181043,129.58,129.52,0.03]
[1740710558048,25.17781043,129.58,129.46,130.18]
[1740710558218,18.79181043,129.54,129.46,130.18]
[1740710558420,82.8,129.53,129.46,130.18]
[1740710559940,82.8,129.57,129.47,1.76342581]
[1740710560318,82.8,129.57,129.47,28.13667467]
[1740710560738,82.8,129.57,129.47,1.76342581]
[1740710560929,82.8,129.57,129.47,9.48702581]
[1740710561122,82.8,129.57,129.49,0.14216157]
[1740710561353,82.8,129.57,129.5,1.62049517]
[1740710561721,82.8,129.57,129.51,1.62082014]
[1740710562040,16.68,129.59,129.51,1.62082014]
[1740710562549,82.8,129.58,129.49,1.62026858]
[1740710562734,101.59181043,129.57,129.47,1.62026858]
[1740710562941,82.8,129.56,129.46,131.83109686]
[1740710563342,82.8,129.56,129.47,0.14216157]
[1740710563547,82.8,129.55,129.46,131.83080475]
[1740710563729,82.8,129.54,129.46,130.21]
[1740710563928,82.8,129.53,129.46,130.21]
[1740710564422,18.64964886,129.51,129.46,130.21]
[1740710564626,38.86716,129.5,129.46,130.21]
[1740710565348,121.66716,129.5,129.46,130.21]
[1740710566447,38.86716,129.5,129.47,1.76344635]
[1740710566624,38.86716,129.5,129.47,1.62128478]
[1740710566821,38.86716,129.5,129.48,0.14216157]
[1740710567045,38.86716,129.5,129.49,1.76283107]
[1740710567356,22.78716,129.5,129.49,22.41247993]
[1740710567528,17.89483099,129.5,129.49,22.41247993]
[1740710567854,17.89483099,129.5,129.49,1.6206695]
[1740710568154,17.89483099,129.5,129.49,20.41247993]
[1740710568355,16.02,129.53,129.51,0.14216157]
[1740710568654,88.8357,129.66,129.52,42.41213979]
[1740710568866,98.72,129.65,129.52,1.62032936]
[1740710569146,98.72,129.65,129.53,0.14216157]
[1740710569347,18.64964886,129.63,129.53,1.61977711]
[1740710569653,82.8,129.62,129.51,18.79181043]
[1740710569827,82.8,129.62,129.54,1.62051558]
[1740710570435,82.8,129.61,129.52,1.62023057]
[1740710570630,82.8,129.6,129.5,1.62047963]
[1740710570952,82.8,129.59,129.5,1.62047963]
[1740710571132,82.8,129.59,129.49,1.62060009]
[1740710571336,82.8,129.58,129.47,1.62079211]
[1740710571557,98.64,129.57,129.47,11.34429211]
[1740710571742,15.84,129.57,129.51,18.79181043]
[1740710571938,21.26271847,129.57,129.52,1.62016265]
[1740710572254,21.26271847,129.57,129.54,18.64964886]
[1740710572435,21.26271847,129.57,129.55,9.33882881]
[1740710572636,5.42271847,129.57,129.56,18.79181043]
[1740710573358,15.8,129.59,129.55,1.61982881]
[1740710573555,15.8,129.59,129.54,7.7194]
[1740710573753,15.8,129.59,129.55,1.62002632]
[1740710574260,82.863,129.69,129.56,20.79181043]
[1740710574474,15.72,129.68,129.57,9.33721516]
[1740710574766,5.44514083,129.58,129.57,1.61941516]
[1740710575135,5.44514083,129.58,129.55,130.2]
[1740710575457,4.43708012,129.58,129.56,1.62013007]
[1740710575653,4.43708012,129.58,129.55,130.2]
[1740710575955,15.7,129.6,129.55,130.2]
[1740710576963,82.8,129.59,129.55,130.2]
[1740710578142,101.59181043,129.58,129.48,130.2]
[1740710578458,15.7,129.6,129.48,130.2]
[1740710578459,82.8,129.57,129.49,1.62101741]
[1740710578638,15.7,129.6,129.49,1.62101741]
[1740710578639,15.7,129.6,129.5,18.79181043]
[1740710578966,15.7,129.6,129.52,0.14216157]